fUST/lending_fUST_20250901
["ID","MTS","AMOUNT","RATE_DAILY","PERIOD"]
[382630857,1756687848716,-480.0,0.00016335,2]
[382630859,1756687848726,-513.5,0.00016335,2]
[382630861,1756687848735,-480.0,0.00016335,2]
[382630862,1756687848746,-480.0,0.00016335,2]
[382630864,1756687848755,-500.0,0.00016336,2]
[382630866,1756687848764,-480.0,0.00016338,2]
[382630868,1756687848775,-480.0,0.00016338,2]
[382630870,1756687848785,-589.03,0.00016338,2]
[382630872,1756687848794,-480.0,0.00016338,2]
[382630874,1756687848804,-480.0,0.00016338,2]
[382630876,1756687848815,-1498.81,0.00016338,2]
[382630878,1756687848824,-480.0,0.00016338,2]
[382630880,1756687848834,-480.0,0.00016338,2]
[382630882,1756687848843,-882.21,0.00016338,2]
[382630884,1756687848853,-480.0,0.00016338,2]
[382630886,1756687848863,-1054.79,0.00016338,2]
[382630888,1756687848872,-1158.3,0.00016338,2]
[382630890,1756687848884,-799.8,0.00016338,2]
[382630892,1756687848894,-522.67,0.00016338,2]
[382630894,1756687848903,-536.1,0.00016338,2]
[382630896,1756687848913,-499.36,0.00016338,2]
[382630898,1756687848923,-748.57,0.00016338,2]
[382630900,1756687848933,-587.17,0.00016338,2]
[382630902,1756687848943,-480.0,0.00016338,2]
[382630904,1756687848952,-480.0,0.00016338,2]
[382630906,1756687848962,-784.21,0.00016338,2]
[382630908,1756687848971,-773.02,0.00016338,2]
[382630910,1756687848981,-480.0,0.00016338,2]
[382630912,1756687848990,-480.0,0.00016338,2]
[382630914,1756687849001,-682.77,0.00016338,2]
[382630916,1756687849011,-480.0,0.00016338,2]
[382630918,1756687849020,-522.52,0.00016338,2]
[382630920,1756687849030,-480.0,0.00016338,2]
[382630922,1756687849040,-480.0,0.00016338,2]
[382630923,1756687849053,-1024.39,0.00016338,2]
[382630925,1756687849063,-480.0,0.00016338,2]
[382630927,1756687849073,-1232.82,0.00016338,2]
[382630929,1756687849084,-480.0,0.00016338,2]
[382630932,1756687849094,-809.87,0.00016338,2]
[382630934,1756687849105,-945.39,0.00016338,2]
[382630935,1756687849115,-658.83,0.00016338,2]
[382630937,1756687849127,-1016.87,0.00016338,2]
[382630939,1756687849137,-480.0,0.00016338,2]
[382630942,1756687849147,-1324.18,0.00016338,2]
[382630944,1756687849157,-480.0,0.00016338,2]
[382630946,1756687849167,-480.0,0.00016338,2]
[382630948,1756687849177,-480.0,0.00016338,2]
[382630954,1756687849234,-480.0,0.00016338,2]
[382630956,1756687849246,-740.28,0.00016338,2]
[382630959,1756687849257,-639.03,0.00016338,2]
[382630960,1756687849266,-480.0,0.00016338,2]
[382630962,1756687849276,-480.0,0.00016338,2]
[382630964,1756687849286,-480.0,0.00016338,2]
[382630966,1756687849295,-480.0,0.00016338,2]
[382630968,1756687849305,-480.0,0.00016338,2]
[382630970,1756687849314,-857.01,0.00016338,2]
[382630972,1756687849323,-1115.88,0.00016338,2]
[382630974,1756687849332,-480.0,0.00016338,2]
[382630976,1756687849342,-891.1,0.00016338,2]
[382630978,1756687849351,-860.37,0.00016338,2]
[382630980,1756687849361,-480.0,0.00016338,2]
[382630982,1756687849370,-480.0,0.00016338,2]
[382630984,1756687849379,-633.85,0.00016338,2]
[382630986,1756687849388,-480.0,0.00016338,2]
[382630988,1756687849397,-480.0,0.00016338,2]
[382630990,1756687849407,-480.0,0.00016338,2]
[382630992,1756687849416,-990.54,0.00016338,2]
[382630994,1756687849425,-480.0,0.00016338,2]
[382630996,1756687849434,-480.0,0.00016338,2]
[382630998,1756687849444,-485.5,0.00016338,2]
[382631000,1756687849453,-480.0,0.00016338,2]
[382631002,1756687849463,-480.0,0.00016338,2]
[382631004,1756687849472,-794.96,0.00016338,2]
[382631006,1756687849481,-480.0,0.00016338,2]
[382631008,1756687849493,-507.12,0.00016338,2]
[382631010,1756687849502,-1031.24,0.00016338,2]
[382631012,1756687849512,-249.71944089,0.0001634,2]
[382631014,1756687849521,-480.0,0.0001634,2]
[382631016,1756687849531,-1228.91,0.0001634,2]
[382631018,1756687849540,-480.0,0.0001634,2]
[382631020,1756687849549,-736.97,0.0001634,2]
[382631022,1756687849559,-4337.97,0.0001634,2]
[382631024,1756687849568,-6736.17,0.0001634,2]
[382631026,1756687849577,-1809.52,0.0001634,2]
[382631028,1756687849587,-480.0,0.0001634,2]
[382631030,1756687849596,-1035.03,0.0001634,2]
[382631032,1756687849605,-1485.05,0.0001634,2]
[382631034,1756687849614,-5153.42,0.0001634,2]
[382631036,1756687849624,-2494.64,0.0001634,2]
[382631038,1756687849633,-6564.42,0.0001634,2]
[382631040,1756687849642,-480.0,0.0001634,2]
[382631042,1756687849651,-656.5,0.0001634,2]
[382631044,1756687849660,-1343.99,0.00016341,2]
[382631046,1756687849670,-1453.88,0.00016341,2]
[382631048,1756687849679,-480.0,0.00016341,2]
[382631050,1756687849688,-480.0,0.00016341,2]
[382631052,1756687849697,-1310.71,0.00016341,2]
[382631054,1756687849707,-2577.1,0.00016341,2]
[382631056,1756687849716,-1480.4,0.00016341,2]
[382631058,1756687849726,-716.66,0.00016341,2]
[382631060,1756687849735,-480.0,0.00016342,2]
[382631062,1756687849746,-325.97501638,0.00016342,2]
[382631064,1756687849755,-480.0,0.00016342,2]
[382631066,1756687849764,-480.0,0.00016342,2]
[382631068,1756687849774,-850.99,0.00016342,2]
[382631070,1756687849783,-480.0,0.00016342,2]
[382631072,1756687849792,-480.0,0.00016342,2]
[382631074,1756687849801,-480.0,0.00016342,2]
[382631076,1756687849810,-480.0,0.00016342,2]
[382631078,1756687849819,-480.0,0.00016342,2]
[382631080,1756687849828,-480.0,0.00016342,2]
[382631082,1756687849837,-480.0,0.00016342,2]
[382631084,1756687849846,-480.0,0.00016342,2]
[382631086,1756687849855,-480.0,0.00016342,2]
[382631088,1756687849865,-480.0,0.00016342,2]
[382631090,1756687849874,-480.0,0.00016342,2]
[382631092,1756687849883,-480.0,0.00016342,2]
[382631094,1756687849892,-389.78158814,0.00016342,2]
[382631096,1756687849901,-480.0,0.00016342,2]
[382631098,1756687849910,-480.0,0.00016342,2]
[382631100,1756687849919,-480.0,0.00016342,2]
[382631102,1756687849929,-480.0,0.00016342,2]
[382631104,1756687849938,-480.0,0.00016342,2]
[382631106,1756687849947,-457.77380632,0.00016342,2]
[382631108,1756687849956,-480.0,0.00016342,2]
[382631110,1756687849965,-366.90315465,0.00016342,2]
[382631112,1756687849974,-480.0,0.00016342,2]
[382631114,1756687849983,-480.0,0.00016342,2]
[382631116,1756687849992,-480.0,0.00016342,2]
[382631118,1756687850002,-480.0,0.00016342,2]
[382631120,1756687850010,-480.0,0.00016342,2]
[382631121,1756687850019,-480.0,0.00016342,2]
[382631124,1756687850030,-480.0,0.00016342,2]
[382631126,1756687850040,-1256.27,0.00016342,2]
[382631127,1756687850054,-480.0,0.00016342,2]
[382631129,1756687850063,-480.0,0.00016342,2]
[382631131,1756687850072,-480.0,0.00016342,2]
[382631133,1756687850082,-603.63,0.00016342,2]
[382631135,1756687850091,-480.0,0.00016342,2]
[382631137,1756687850101,-480.0,0.00016342,2]
[382631139,1756687850110,-480.0,0.00016342,2]
[382631141,1756687850120,-480.0,0.00016342,2]
[382631143,1756687850131,-480.0,0.00016342,2]
[382631145,1756687850141,-687.41,0.00016342,2]
[382631147,1756687850150,-480.0,0.00016342,2]
[382631149,1756687850160,-480.0,0.00016342,2]
[382631151,1756687850169,-507.08,0.00016342,2]
[382631153,1756687850178,-480.0,0.00016342,2]
[382631155,1756687850188,-480.0,0.00016342,2]
[382631157,1756687850197,-539.42,0.00016342,2]
[382631159,1756687850207,-564.53,0.00016342,2]
[382631161,1756687850216,-1492.21,0.00016342,2]
[382631163,1756687850226,-1418.84,0.00016342,2]
[382631165,1756687850236,-915.01,0.00016342,2]
[382631167,1756687850247,-480.0,0.00016342,2]
[382631169,1756687850257,-480.0,0.00016342,2]
[382631171,1756687850266,-480.0,0.00016342,2]
[382631173,1756687850276,-480.0,0.00016342,2]
[382631175,1756687850285,-480.0,0.00016342,2]
[382631177,1756687850295,-480.0,0.00016342,2]
[382631179,1756687850304,-480.0,0.00016342,2]
[382631181,1756687850313,-532.35,0.00016342,2]
[382631183,1756687850322,-484.91050785,0.00016342,2]
[382631184,1756687850331,-480.0,0.00016342,2]
[382631186,1756687850340,-1327.24,0.00016342,2]
[382631188,1756687850350,-480.0,0.00016342,2]
[382631190,1756687850359,-954.9,0.00016342,2]
[382631192,1756687850368,-1178.04,0.00016342,2]
[382631194,1756687850378,-480.0,0.00016342,2]
[382631196,1756687850387,-480.0,0.00016342,2]
[382631198,1756687850396,-480.0,0.00016342,2]
[382631201,1756687850407,-480.0,0.00016342,2]
[382631203,1756687850424,-480.0,0.00016342,2]
[382631204,1756687850439,-480.0,0.00016342,2]
[382631206,1756687850449,-1319.04,0.00016342,2]
[382631208,1756687850458,-480.0,0.00016342,2]
[382631210,1756687850467,-480.0,0.00016342,2]
[382631212,1756687850477,-1301.79,0.00016342,2]
[382631214,1756687850486,-480.0,0.00016342,2]
[382631216,1756687850497,-480.0,0.00016342,2]
[382631218,1756687850506,-480.0,0.00016342,2]
[382631220,1756687850516,-480.0,0.00016342,2]
[382631222,1756687850525,-480.0,0.00016342,2]
[382631225,1756687850535,-632.36,0.00016342,2]
[382631227,1756687850545,-480.0,0.00016342,2]
[382631228,1756687850554,-626.12,0.00016342,2]
[382631230,1756687850563,-480.0,0.00016342,2]
[382631232,1756687850572,-480.0,0.00016342,2]
[382631234,1756687850581,-480.0,0.00016342,2]
[382631236,1756687850590,-480.0,0.00016342,2]
[382631238,1756687850599,-480.0,0.00016342,2]
[382631240,1756687850609,-607.62937422,0.00016342,2]
[382631241,1756687850617,-1282.24,0.00016342,2]
[382631243,1756687850627,-597.33,0.00016342,2]
[382631245,1756687850636,-480.0,0.00016342,2]
[382631247,1756687850646,-480.0,0.00016342,2]
[382631249,1756687850655,-1208.35,0.00016342,2]
[382631251,1756687850664,-619.85714217,0.00016342,2]
[382631253,1756687850674,-480.0,0.00016342,2]
[382631255,1756687850683,-480.0,0.00016342,2]
[382631257,1756687850693,-480.0,0.00016342,2]
[382631259,1756687850703,-480.0,0.00016342,2]
[382631261,1756687850712,-480.0,0.00016342,2]
[382631263,1756687850721,-537.46,0.00016342,2]
[382631265,1756687850729,-1127.08,0.00016342,2]
[382631267,1756687850739,-480.0,0.00016342,2]
[382631269,1756687850750,-480.0,0.00016342,2]
[382631271,1756687850759,-480.0,0.00016342,2]
[382631272,1756687850768,-1167.29,0.00016342,2]
[382631273,1756687850777,-480.0,0.00016342,2]
[382631274,1756687850785,-480.0,0.00016342,2]
[382631275,1756687850794,-480.0,0.00016342,2]
[382631276,1756687850803,-480.0,0.00016342,2]
[382631277,1756687850812,-480.0,0.00016342,2]
[382631278,1756687850821,-480.0,0.00016342,2]
[382631279,1756687850830,-480.0,0.00016342,2]
[382631280,1756687850839,-1304.43,0.00016342,2]
[382631281,1756687850848,-155.7561095,0.00016342,2]
[382631282,1756687850857,-480.0,0.00016342,2]
[382631283,1756687850866,-1072.46,0.00016342,2]
[382631284,1756687850876,-455.96158309,0.00016342,2]
[382631285,1756687850885,-958.16,0.00016342,2]
[382631286,1756687850894,-1440.15,0.00016342,2]
[382631287,1756687850903,-480.0,0.00016342,2]
[382631288,1756687850912,-480.0,0.00016342,2]
[382631289,1756687850921,-480.0,0.00016342,2]
[382631290,1756687850930,-795.37,0.00016342,2]
[382631291,1756687850939,-626.57,0.00016342,2]
[382631292,1756687850948,-508.59,0.00016342,2]
[382631294,1756687850958,-269.48133979,0.00016342,2]
[382631296,1756687850967,-480.0,0.00016342,2]
[382631298,1756687850977,-480.0,0.00016342,2]
[382631300,1756687850987,-635.1,0.00016342,2]
[382631302,1756687851002,-480.0,0.00016342,2]
[382631304,1756687851012,-480.0,0.00016342,2]
[382631306,1756687851023,-584.5,0.00016342,2]
[382631308,1756687851033,-480.0,0.00016342,2]
[382631311,1756687851046,-1000.0,0.00016342,2]
[382631313,1756687851057,-480.0,0.00016342,2]
[382631315,1756687851067,-480.0,0.00016342,2]
[382631317,1756687851077,-480.0,0.00016342,2]
[382631319,1756687851087,-2022.72,0.00016342,2]
[382631321,1756687851097,-480.0,0.00016342,2]
[382631322,1756687851107,-751.25,0.00016342,2]
[382631325,1756687851117,-1267.73,0.00016342,2]
[382631326,1756687851127,-480.0,0.00016342,2]
[382631329,1756687851137,-480.0,0.00016342,2]
[382631330,1756687851148,-1300.22,0.00016342,2]
[382631332,1756687851158,-480.0,0.00016343,2]
[382631334,1756687851167,-480.0,0.00016343,2]
[382631336,1756687851176,-480.0,0.00016343,2]
[382631338,1756687851186,-480.0,0.00016343,2]
[382631341,1756687851196,-540.74,0.00016343,2]
[382631343,1756687851206,-482.18,0.00016343,2]
[382631345,1756687851216,-480.0,0.00016343,2]
[382631347,1756687851225,-480.0,0.00016343,2]
[382631349,1756687851235,-480.0,0.00016343,2]
[382631351,1756687851248,-480.0,0.00016343,2]
[382631353,1756687851257,-480.0,0.00016343,2]
[382631355,1756687851267,-587.8,0.00016343,2]
[382631357,1756687851276,-506.86,0.00016343,2]
[382631359,1756687851285,-480.0,0.00016343,2]
[382631361,1756687851294,-1254.21,0.00016343,2]
[382631363,1756687851304,-480.0,0.00016343,2]
[382631365,1756687851313,-480.0,0.00016343,2]
[382631367,1756687851323,-480.0,0.00016343,2]
[382631369,1756687851332,-1234.42,0.00016343,2]
[382631371,1756687851342,-480.0,0.00016343,2]
[382631373,1756687851352,-1177.56,0.00016343,2]
[382631375,1756687851361,-480.0,0.00016343,2]
[382631377,1756687851371,-480.0,0.00016343,2]
[382631379,1756687851380,-480.0,0.00016343,2]
[382631381,1756687851390,-547.85,0.00016343,2]
[382631383,1756687851399,-480.0,0.00016343,2]
[382631385,1756687851409,-480.0,0.00016343,2]
[382631387,1756687851418,-645.43,0.00016343,2]
[382631389,1756687851428,-496.59,0.00016343,2]
[382631391,1756687851437,-480.0,0.00016343,2]
[382631393,1756687851447,-480.0,0.00016343,2]
[382631395,1756687851457,-480.0,0.00016343,2]
[382631397,1756687851466,-480.0,0.00016343,2]
[382631400,1756687851477,-480.0,0.00016343,2]
[382631402,1756687851487,-480.0,0.00016343,2]
[382631404,1756687851499,-480.0,0.00016343,2]
[382631406,1756687851508,-480.0,0.00016343,2]
[382631408,1756687851519,-487.48883686,0.00016343,2]
[382631410,1756687851528,-480.0,0.00016343,2]
[382631412,1756687851537,-492.22,0.00016343,2]
[382631414,1756687851547,-720.11,0.00016343,2]
[382631416,1756687851556,-480.0,0.00016343,2]
[382631418,1756687851566,-480.0,0.00016343,2]
[382631420,1756687851575,-585.35,0.00016343,2]
[382631422,1756687851584,-480.0,0.00016343,2]
[382631424,1756687851593,-480.0,0.00016343,2]
[382631426,1756687851603,-480.0,0.00016343,2]
[382631428,1756687851613,-721.85,0.00016343,2]
[382631430,1756687851622,-480.0,0.00016343,2]
[382631432,1756687851632,-480.0,0.00016343,2]
[382631434,1756687851642,-480.0,0.00016343,2]
[382631436,1756687851651,-480.0,0.00016343,2]
[382631438,1756687851660,-480.0,0.00016343,2]
[382631440,1756687851670,-480.0,0.00016343,2]
[382631443,1756687851680,-480.0,0.00016343,2]
[382631445,1756687851689,-480.0,0.00016343,2]
[382631447,1756687851699,-1431.94,0.00016343,2]
[382631449,1756687851708,-480.0,0.00016343,2]
[382631451,1756687851718,-480.0,0.00016343,2]
[382631453,1756687851727,-480.0,0.00016343,2]
[382631455,1756687851737,-480.0,0.00016343,2]
[382631457,1756687851748,-779.49,0.00016343,2]
[382631459,1756687851758,-742.41,0.00016343,2]
[382631461,1756687851768,-480.0,0.00016343,2]
[382631463,1756687851779,-480.0,0.00016343,2]
[382631465,1756687851789,-480.0,0.00016343,2]
[382631467,1756687851799,-1355.72,0.00016343,2]
[382631468,1756687851809,-480.0,0.00016343,2]
[382631471,1756687851820,-480.0,0.00016343,2]
[382631473,1756687851833,-480.0,0.00016343,2]
[382631475,1756687851844,-480.0,0.00016343,2]
[382631476,1756687851854,-480.0,0.00016343,2]
[382631478,1756687851863,-480.0,0.00016343,2]
[382631481,1756687851875,-853.8,0.00016343,2]
[382631483,1756687851885,-480.0,0.00016343,2]
[382631485,1756687851894,-952.67,0.00016343,2]
[382631487,1756687851903,-480.0,0.00016343,2]
[382631489,1756687851912,-480.0,0.00016343,2]
[382631491,1756687851922,-480.0,0.00016343,2]
[382631493,1756687851932,-188.32626617,0.00016343,2]
[382631495,1756687851941,-480.0,0.00016343,2]
[382631497,1756687851951,-480.0,0.00016343,2]
[382631499,1756687851960,-480.0,0.00016343,2]
[382631501,1756687851969,-665.21,0.00016343,2]
[382631503,1756687851979,-480.0,0.00016343,2]
[382631505,1756687851988,-480.0,0.00016343,2]
[382631507,1756687852000,-919.52,0.00016343,2]
[382631509,1756687852009,-480.0,0.00016343,2]
[382631511,1756687852018,-480.0,0.00016343,2]
[382631513,1756687852028,-480.0,0.00016343,2]
[382631515,1756687852038,-480.0,0.00016343,2]
[382631517,1756687852051,-480.0,0.00016343,2]
[382631519,1756687852061,-480.0,0.00016343,2]
[382631521,1756687852070,-480.0,0.00016343,2]
[382631523,1756687852079,-315.48667577,0.00016343,2]
[382631525,1756687852091,-602.84,0.00016343,2]
[382631527,1756687852101,-480.0,0.00016343,2]
[382631529,1756687852110,-1348.81,0.00016343,2]
[382631531,1756687852119,-480.0,0.00016343,2]
[382631534,1756687852129,-480.0,0.00016343,2]
[382631536,1756687852139,-745.56,0.00016343,2]
[382631538,1756687852150,-480.0,0.00016343,2]
[382631540,1756687852159,-480.0,0.00016343,2]
[382631542,1756687852169,-480.0,0.00016343,2]
[382631544,1756687852179,-636.73,0.00016343,2]
[382631546,1756687852188,-1065.89,0.00016343,2]
[382631548,1756687852198,-1007.05,0.00016343,2]
[382631550,1756687852208,-480.0,0.00016343,2]
[382631552,1756687852217,-498.04,0.00016343,2]
[382631554,1756687852226,-480.0,0.00016343,2]
[382631556,1756687852236,-480.0,0.00016343,2]
[382631558,1756687852247,-480.0,0.00016343,2]
[382631560,1756687852256,-1078.85,0.00016343,2]
[382631562,1756687852266,-480.0,0.00016343,2]
[382631564,1756687852275,-836.93,0.00016343,2]
[382631566,1756687852284,-480.0,0.00016343,2]
[382631568,1756687852295,-480.0,0.00016343,2]
[382631570,1756687852304,-757.88,0.00016343,2]
[382631572,1756687852314,-480.0,0.00016343,2]
[382631574,1756687852323,-480.0,0.00016343,2]
[382631576,1756687852333,-480.0,0.00016343,2]
[382631578,1756687852343,-480.0,0.00016343,2]
[382631580,1756687852353,-201.02901203,0.00016343,2]
[382631582,1756687852363,-480.0,0.00016343,2]
[382631584,1756687852372,-480.0,0.00016343,2]
[382631586,1756687852382,-480.0,0.00016343,2]
[382631588,1756687852391,-480.0,0.00016343,2]
[382631590,1756687852401,-1027.14,0.00016343,2]
[382631592,1756687852411,-692.73,0.00016343,2]
[382631594,1756687852420,-480.0,0.00016343,2]
[382631596,1756687852429,-480.0,0.00016343,2]
[382631598,1756687852439,-480.0,0.00016343,2]
[382631600,1756687852448,-640.96,0.00016343,2]
[382631602,1756687852457,-480.0,0.00016343,2]
[382631604,1756687852468,-480.0,0.00016343,2]
[382631606,1756687852482,-480.0,0.00016343,2]
[382631608,1756687852491,-657.74,0.00016343,2]
[382631610,1756687852503,-480.0,0.00016343,2]
[382631613,1756687852512,-995.1,0.00016343,2]
[382631615,1756687852522,-1702.2,0.00016344,2]
[382631617,1756687852532,-480.0,0.00016344,2]
[382631619,1756687852542,-696.63,0.00016344,2]
[382631620,1756687852552,-175.77,0.00016344,2]
[382631623,1756687852561,-480.0,0.00016344,2]
[382631625,1756687852571,-572.22,0.00016344,2]
[382631627,1756687852581,-918.17,0.00016344,2]
[382631629,1756687852591,-903.61,0.00016344,2]
[382631631,1756687852600,-480.0,0.00016344,2]
[382631633,1756687852610,-1164.13,0.00016344,2]
[382631635,1756687852619,-501.48,0.00016344,2]
[382631637,1756687852629,-480.0,0.00016344,2]
[382631639,1756687852639,-480.0,0.00016344,2]
[382631641,1756687852648,-480.0,0.00016344,2]
[382631643,1756687852658,-480.0,0.00016344,2]
[382631645,1756687852667,-570.88,0.00016344,2]
[382631647,1756687852677,-480.0,0.00016345,2]
[382631649,1756687852688,-539.37,0.00016345,2]
[382631651,1756687852697,-480.0,0.00016345,2]
[382631653,1756687852707,-480.0,0.00016345,2]
[382631655,1756687852716,-1296.92,0.00016345,2]
[382631657,1756687852726,-761.86,0.00016345,2]
[382631659,1756687852735,-480.0,0.00016345,2]
[382631661,1756687852745,-480.0,0.00016345,2]
[382631663,1756687852754,-480.0,0.00016345,2]
[382631665,1756687852764,-480.0,0.00016345,2]
[382631667,1756687852773,-632.19,0.00016345,2]
[382631669,1756687852782,-480.0,0.00016345,2]
[382631671,1756687852792,-480.0,0.00016345,2]
[382631673,1756687852801,-480.0,0.00016345,2]
[382631675,1756687852811,-480.0,0.00016345,2]
[382631677,1756687852820,-686.37,0.00016345,2]
[382631679,1756687852830,-578.59,0.00016345,2]
[382631681,1756687852840,-480.0,0.00016345,2]
[382631684,1756687852850,-574.82,0.00016345,2]
[382631686,1756687852860,-500.0,0.00016346,2]
[382631688,1756687852870,-500.0,0.00016346,2]
[382631690,1756687852879,-500.0,0.00016346,2]
[382631692,1756687852888,-151.0,0.00016346,2]
[382631694,1756687852897,-500.0,0.00016346,2]
[382631696,1756687852907,-151.0,0.00016353,2]
[382631698,1756687852917,-500.0,0.00016353,2]
[382631700,1756687852927,-151.0,0.00016353,2]
[382631702,1756687852936,-245.0,0.00016353,2]
[382631704,1756687852946,-151.0,0.00016353,2]
[382631706,1756687852956,-151.0,0.00016353,2]
[382631708,1756687852966,-500.0,0.00016373,2]
[382631710,1756687852976,-500.0,0.00016373,2]
[382631712,1756687852985,-500.0,0.00016373,2]
[382631714,1756687852996,-162.28722497,0.00016373,2]
[382631716,1756687853006,-500.0,0.00016373,2]
[382631718,1756687853016,-300.02526822,0.00016373,2]
[382631720,1756687853026,-608.87160144,0.00016373,2]
[382631722,1756687853036,-259.75959681,0.00016373,2]
[382631724,1756687853049,-340.29691415,0.00016373,2]
[382631726,1756687853059,-500.0,0.00016373,2]
[382631744,1756687853223,-500.0,0.00016373,2]
[382631746,1756687853233,-502.1843914,0.00016373,2]
[382631748,1756687853243,-500.0,0.00016373,2]
[382631750,1756687853254,-500.0,0.00016373,2]
[382631752,1756687853263,-500.0,0.00016373,2]
[382631754,1756687853273,-500.0,0.00016373,2]
[382631756,1756687853282,-373.13586244,0.00016373,2]
[382631758,1756687853291,-500.0,0.00016373,2]
[382631760,1756687853301,-500.0,0.00016373,2]
[382631762,1756687853310,-500.0,0.00016373,2]
[382631764,1756687853319,-501.21878673,0.00016373,2]
[382631766,1756687853329,-510.94333666,0.00016373,2]
[382631768,1756687853338,-500.0,0.00016373,2]
[382631770,1756687853348,-500.0,0.00016373,2]
[382631773,1756687853359,-500.0,0.00016373,2]
[382631775,1756687853368,-500.0,0.00016373,2]
[382631777,1756687853377,-500.0,0.00016373,2]
[382631778,1756687853386,-500.0,0.00016373,2]
[382631780,1756687853395,-500.0,0.00016373,2]
[382631782,1756687853405,-500.0,0.00016373,2]
[382631784,1756687853414,-500.0,0.00016373,2]
[382631786,1756687853423,-500.0,0.00016373,2]
[382631788,1756687853432,-500.0,0.00016373,2]
[382631790,1756687853442,-500.0,0.00016373,2]
[382631792,1756687853451,-500.0,0.00016373,2]
[382631793,1756687853460,-500.0,0.00016373,2]
[382631794,1756687853469,-500.0,0.00016373,2]
[382631795,1756687853478,-500.0,0.00016373,2]
[382631796,1756687853487,-500.0,0.00016373,2]
[382631797,1756687853496,-300.0,0.0001639,2]
[382631798,1756687853506,-300.0,0.0001639,2]
[382631799,1756687853515,-300.0,0.0001639,2]
[382631800,1756687853525,-300.0,0.0001639,2]
[382631801,1756687853535,-300.0,0.0001639,2]
[382631802,1756687853544,-300.0,0.0001639,2]
[382631803,1756687853554,-300.0,0.0001639,2]
[382631804,1756687853563,-300.0,0.0001639,2]
[382631805,1756687853573,-300.0,0.0001639,2]
[382631806,1756687853582,-300.0,0.0001639,2]
[382631807,1756687853591,-300.0,0.0001639,2]
[382631808,1756687853601,-300.0,0.0001639,2]
[382631809,1756687853610,-300.0,0.0001639,2]
[382631810,1756687853619,-300.0,0.0001639,2]
[382631811,1756687853628,-300.0,0.0001639,2]
[382631812,1756687853638,-600.0,0.0001639,2]
[382631813,1756687853647,-151.0,0.000164,2]
[382631814,1756687853656,-151.0,0.000164,2]
[382631815,1756687853665,-151.0,0.000164,2]
[382631816,1756687853674,-9434.47688354,0.00016433,2]
[382631817,1756687853684,-151.0,0.00016438,2]
[382631818,1756687853693,-150.0,0.00016438,2]
[382631819,1756687853702,-2110.04,0.00016438,2]
[382631820,1756687853711,-2110.04,0.00016438,2]
[382631821,1756687853720,-2110.04,0.00016438,2]
[382631822,1756687853729,-2110.04,0.00016438,2]
[382631823,1756687853738,-2110.04,0.00016438,2]
[382631824,1756687853748,-2110.04,0.00016438,2]